fUSD/lending_fUSD_20260112
["ID","MTS","AMOUNT","RATE_DAILY","PERIOD"]
[401423661,1768201965411,-500.0,0.00012814,2]
[401423662,1768201965443,-71.28238676,0.00012814,2]
[401423663,1768201965530,-428.71761324,0.00012814,2]
[401423664,1768201965565,-500.0,0.00012814,2]
[401423665,1768201965598,-500.0,0.00012814,2]
[401423666,1768201965631,-500.0,0.00012814,2]
[401423667,1768201965670,-500.0,0.00012814,2]
[401423668,1768201965708,-500.0,0.00012814,2]
[401423669,1768201965743,-500.0,0.00012814,2]
[401423670,1768201965778,-500.0,0.00012814,2]
[401423671,1768201965815,-500.0,0.00012814,2]
[401423672,1768201965852,-500.0,0.00012814,2]
[401423673,1768201965978,-500.0,0.00012814,2]
[401423674,1768201966014,-500.0,0.00012814,2]
[401423675,1768201966046,-283.08636146,0.00012814,2]
[401423676,1768201966079,-500.0,0.00012814,2]
[401423677,1768201966112,-500.0,0.00012814,2]
[401423678,1768201966146,-500.0,0.00012814,2]
[401423679,1768201966180,-500.0,0.00012814,2]
[401423680,1768201966212,-500.0,0.00012814,2]
[401423681,1768201966247,-500.0,0.00012814,2]
[401423682,1768201966282,-500.0,0.00012814,2]
[401423683,1768201966321,-195.53814828,0.00012814,2]
[401423684,1768201968428,-304.46185172,0.00012814,2]
[401423685,1768201968455,-81.94431743,0.00012814,2]
[401423686,1768201970629,-224.95,0.00012814,2]
[401423687,1768201974680,-193.10568257,0.00012814,2]
[401423688,1768201974712,-500.0,0.00012814,2]
[401423689,1768201974742,-350.4536441,0.00012814,2]
[401423690,1768201976352,-149.5463559,0.00012814,2]
[401423691,1768201976382,-47.75870206,0.00012814,2]
[401423692,1768201979522,-452.24129794,0.00012814,2]
[401423693,1768201979558,-500.0,0.00012814,2]
[401423694,1768201979964,-500.0,0.00012814,2]
[401423695,1768201980007,-500.0,0.00012814,2]
[401423696,1768201980043,-500.0,0.00012814,2]
[401423697,1768201980079,-500.0,0.00012814,2]
[401423698,1768201980117,-500.0,0.00012814,2]
[401423699,1768201980154,-500.0,0.00012814,2]
[401423700,1768201980190,-500.0,0.00012814,2]
[401423701,1768201980226,-500.0,0.00012814,2]
[401423702,1768201980346,-500.0,0.00012814,2]
[401423703,1768201980388,-500.0,0.00012814,2]
[401423704,1768201980426,-500.0,0.00012814,2]
[401423705,1768201980470,-500.0,0.00012814,2]
[401423706,1768201980513,-500.0,0.00012814,2]
[401423707,1768201980556,-500.0,0.00012814,2]
[401423708,1768201980596,-400.0,0.00012814,2]
[401423709,1768201980827,-263.39186271,0.00012815,2]
[401423710,1768202016110,-300.0,0.00012813,2]
[401423711,1768202031931,-709.3280002,0.00012815,2]
[401423712,1768202045750,900.0,0.000129,4]
[401423713,1768202106224,-298.54134994,0.00012715,2]
[401423715,1768202109951,-319.52610379,0.00012715,2]
[401423717,1768202111516,-300.0,0.00012715,2]
[401423718,1768202112072,-535.38388822,0.00012715,2]
[401423720,1768202113016,-220.7081094,0.00012715,2]
[401423721,1768202117324,-191.43443687,0.00012715,2]
[401423722,1768202120511,-183.37522052,0.00012715,2]
[401423723,1768202123050,-297.33914041,0.00012715,2]
[401423724,1768202128400,-265.0,0.00012715,2]
[401423725,1768202130648,-2228.62468364,0.00012715,2]
[401423727,1768202131616,-386.7209937,0.00012715,2]
[401423729,1768202133715,-255.60362038,0.00012715,2]
[401423731,1768202135878,-258.83768649,0.00012715,2]
[401423732,1768202137827,-168.00441332,0.00012715,2]
[401423733,1768202139454,-402.69494204,0.00012715,2]
[401423734,1768202141410,-385.99815781,0.00012715,2]
[401423735,1768202143472,-313.69994669,0.00012715,2]
[401423736,1768202145512,-3371.20087229,0.00012715,2]
[401423737,1768202145543,-698.99769527,0.00012715,2]
[401423738,1768202145575,-195.0,0.0001274,2]
[401423739,1768202145605,-329.44901645,0.00012765,2]
[401423740,1768202145636,-300.0,0.00012814,2]
[401423741,1768202165265,1881.34192554,0.00027397,120]
[401423742,1768202195667,-258.52612354,0.00012814,2]
[401423744,1768202269230,-241.47387646,0.00012814,2]
[401423745,1768202269267,-247.75868658,0.00012814,2]
[401423746,1768202269302,-500.0,0.00012814,2]
[401423747,1768202269333,-449.70033086,0.00012814,2]
[401423748,1768202269369,-312.27576823,0.00012814,2]
[401423750,1768202269401,-250.0,0.00012814,2]
[401423751,1768202269434,-1200.0,0.00012814,2]
[401423752,1768202269467,-300.0,0.00012814,2]
[401423753,1768202269500,-150.0,0.00012814,2]
[401423756,1768202281431,300.0,0.00012814,2]
[401423757,1768202282117,300.0,0.00012814,2]
[401423758,1768202282292,150.0,0.00012814,2]
[401423763,1768202341830,300.0,0.00012814,2]
[401423764,1768202372402,1647.59267574,0.00012715,2]
[401423765,1768202372429,7515.04414653,0.00012715,2]
[401423766,1768202391729,611.62298337,0.00012715,2]
[401423767,1768202401418,1200.0,0.00012814,2]
[401423768,1768202401458,300.0,0.00012814,2]
[401423769,1768202411600,373.3428701,0.0001275,2]
[401423770,1768202411624,10000.01,0.0001275,2]
[401423771,1768202411648,120.7849339,0.0001275,2]
[401423772,1768202413510,-397.32219352,0.00012815,2]
[401423773,1768202463746,150.0,0.00012814,2]
[401423774,1768202465886,-170.20645557,0.00012815,2]
[401423775,1768202468051,-163.21,0.00012815,2]
[401423776,1768202471211,-234.06004276,0.00012815,2]
[401423777,1768202472785,-207.50054291,0.00012815,2]
[401423778,1768202474781,-300.0,0.00012815,2]
[401423779,1768202476347,-162.0570813,0.00012815,2]
[401423780,1768202476929,3029.9504,0.00012715,2]
[401423781,1768202480024,-217.9782436,0.00012815,2]
[401423782,1768202482161,-376.69327712,0.00012815,2]
[401423783,1768202483745,-245.30934677,0.00012815,2]
[401423784,1768202486376,-248.05759627,0.00012815,2]
[401423785,1768202488373,-268.97657972,0.00012815,2]
[401423786,1768202491124,-231.82683937,0.00012815,2]
[401423787,1768202492915,6699.2746661,0.00012715,2]
[401423788,1768202492945,2645.14954285,0.00012715,2]
[401423789,1768202493588,173.707,0.00012558,2]
[401423790,1768202493627,2440.004,0.00012558,2]
[401423791,1768202494184,-187.85577662,0.00012815,2]
[401423792,1768202497541,-201.20066262,0.00012815,2]
[401423793,1768202499611,-220.50650631,0.00012815,2]
[401423794,1768202525799,-169.00688446,0.00012815,2]
[401423795,1768202529602,-500.0,0.00012815,2]
[401423796,1768202533539,-350.14123088,0.00012815,2]
[401423797,1768202536477,-333.28927756,0.00012815,2]
[401423798,1768202537977,3140.7427,0.00012715,2]
[401423799,1768202543015,-335.43011642,0.00012815,2]
[401423800,1768202544280,1600.40675715,0.00012715,2]
[401423801,1768202544306,899.59324285,0.00012715,2]
[401423802,1768202544665,-383.42390206,0.00012815,2]
[401423803,1768202550774,-265.59194196,0.00012815,2]
[401423804,1768202552352,-351.54260527,0.00012815,2]
[401423805,1768202581641,300.0,0.00012814,2]
[401423806,1768202615847,-206.46217732,0.00012815,2]
[401423807,1768202641587,300.0,0.00012814,2]
[401423808,1768202643016,150.0,0.00012814,2]
[401423809,1768202678377,535.17011044,0.00012715,2]
[401423810,1768202694867,1099.5249,0.00012715,2]
[401423811,1768202701270,300.0,0.00012814,2]
[401423812,1768202701307,286.0,0.00012814,2]
[401423813,1768202701390,1200.0,0.00012814,2]
[401423814,1768202705226,-90450.0,0.00012815,2]
[401423815,1768202724728,1026.99761776,0.000108,2]
[401423817,1768202759473,3902.72412895,8e-05,2]
[401423818,1768202759499,3149.4356153,8e-05,2]
[401423819,1768202761718,300.0,0.00012814,2]
[401423821,1768202763564,6550.5743847,0.00011,2]
[401423822,1768202763591,2865.87272851,0.00011,2]
[401423823,1768202763894,281.83931929,0.00012814,2]
[401423824,1768202764537,2995.17829643,0.00012814,2]
[401423825,1768202764589,1119.21541804,0.00012814,2]
[401423826,1768202764636,2737.90423773,0.00012814,2]
[401423827,1768202764664,145.73086516,0.00012814,2]
[401423828,1768202764758,195.0,0.00012814,2]
[401423829,1768202768145,7496.012094,7.945e-05,2]
[401423831,1768202815298,-10000.0,0.00012815,2]
[401423832,1768202821394,300.0,0.00012814,2]
[401423833,1768202822613,-10000.0,0.00012815,2]
[401423834,1768202822769,150.0,0.00012814,2]
[401423835,1768202823278,-10000.0,0.00012815,2]
[401423836,1768202823733,-10000.0,0.00012815,2]
[401423837,1768202824316,-10000.0,0.00012815,2]
[401423838,1768202824924,-10000.0,0.00012815,2]
[401423839,1768202825274,-10000.0,0.00012815,2]
[401423840,1768202825999,-10000.0,0.00012815,2]
[401423841,1768202826100,-234.06057033,0.00012815,2]
[401423842,1768202826574,-10000.0,0.00012815,2]
[401423843,1768202826768,300.0,0.00012814,2]
[401423844,1768202827138,-10000.0,0.00012815,2]
[401423845,1768202827711,-10000.0,0.00012815,2]
[401423846,1768202828315,-10000.0,0.00012815,2]
[401423847,1768202829940,-10000.0,0.00012815,2]
[401423848,1768202830176,-10000.0,0.00012815,2]
[401423849,1768202831154,-10000.0,0.00012815,2]
[401423850,1768202832026,-10000.0,0.00012815,2]
[401423851,1768202832336,200.0,0.00012815,2]
[401423852,1768202833027,-10000.0,0.00012815,2]
[401423853,1768202833675,1500.0,0.00010959,2]
[401423854,1768202833772,-10000.0,0.00012815,2]
[401423855,1768202835666,200.0,0.00012815,2]
[401423856,1768202835714,500.0,0.00012815,2]
[401423857,1768202835980,900.0,0.000129,4]
[401423858,1768202836520,1502.420472,0.00010959,2]
[401423859,1768202836643,151.0,0.00012815,2]
[401423860,1768202837250,151.0,0.00012815,2]
[401423861,1768202837851,151.0,0.00012815,2]
[401423862,1768202838102,1800.0,0.000139,5]
[401423863,1768202838470,151.0,0.00012815,2]
[401423864,1768202839070,151.0,0.00012815,2]
[401423865,1768202839672,151.0,0.00012815,2]
[401423866,1768202839774,-6481.0,0.00012815,2]
[401423867,1768202840936,151.0,0.00012815,2]
[401423868,1768202841078,151.0,0.00012815,2]
[401423869,1768202841634,164.58379826,0.00012815,2]
[401423870,1768202844431,3975.00572974,0.00012715,2]
[401423871,1768202844473,2179.18737026,0.00012715,2]
[401423873,1768202859498,166.66,0.00012329,2]
[401423874,1768202859734,166.66,0.00012571,2]
[401423876,1768202860141,166.66,0.00012814,2]
[401423878,1768202867691,5942.2898268,0.00012,2]
[401423879,1768202872430,200.0,0.00012722,2]
[401423881,1768202878622,1178.55280294,0.00012722,2]
[401423882,1768202878649,673.86719706,0.00012722,2]
[401423883,1768202882753,9326.14280294,0.00012715,2]
[401423884,1768202882781,276.17719941,0.00012715,2]
[401423885,1768202882821,162.58813593,0.00012715,2]
[401423886,1768202883401,344.41954599,0.00012814,2]
[401423887,1768202884602,8409.98178801,0.00012715,2]
[401423888,1768202884665,167.73428703,0.00012814,2]
[401423889,1768202884767,500.0,0.00012814,2]
[401423890,1768202884819,139.10904363,0.00012814,2]
[401423891,1768202884855,360.89095637,0.00012814,2]
[401423892,1768202884903,500.0,0.00012814,2]
[401423893,1768202884968,500.0,0.00012814,2]
[401423894,1768202885018,500.0,0.00012814,2]
[401423895,1768202885066,500.0,0.00012814,2]
[401423896,1768202885125,500.0,0.00012814,2]
[401423897,1768202885174,500.0,0.00012814,2]
[401423898,1768202885227,500.0,0.00012814,2]
[401423899,1768202885273,500.0,0.00012814,2]
[401423900,1768202885324,500.0,0.00012814,2]
[401423901,1768202885374,500.0,0.00012814,2]
[401423902,1768202885422,500.0,0.00012814,2]
[401423903,1768202885478,500.0,0.00012814,2]
[401423904,1768202885529,500.0,0.00012814,2]
[401423905,1768202885570,500.0,0.00012814,2]
[401423906,1768202885619,500.0,0.00012814,2]
[401423907,1768202885669,500.0,0.00012814,2]
[401423908,1768202885719,500.0,0.00012814,2]
[401423909,1768202885779,500.0,0.00012814,2]
[401423910,1768202885832,500.0,0.00012814,2]
[401423911,1768202885881,139.11904363,0.00012814,2]
[401423912,1768202885912,360.88095637,0.00012814,2]
[401423913,1768202885959,500.0,0.00012814,2]
[401423914,1768202886012,500.0,0.00012814,2]
[401423915,1768202886059,500.0,0.00012814,2]
[401423916,1768202886105,500.0,0.00012814,2]
[401423917,1768202886145,500.0,0.00012814,2]
[401423918,1768202886201,500.0,0.00012814,2]
[401423919,1768202886250,607.49669582,0.00012814,2]
[401423923,1768202917033,-324.87275436,0.00012815,2]
[401423924,1768202921644,-168.42467707,0.00012815,2]
[401423925,1768202927979,-253.39799004,0.00012815,2]
[401423926,1768202929040,-482.80396995,0.00012815,2]
[401423927,1768202929412,8953.15,0.00012624,2]
[401423928,1768202935317,-320.5206369,0.00012815,2]
[401423929,1768202937379,-250.0,0.00012815,2]
[401423930,1768202942506,-186.26906812,0.00012815,2]
[401423931,1768202944617,-156.09199774,0.00012815,2]
[401423932,1768202952874,-220.47777362,0.00012815,2]
[401423933,1768202958320,-177.02003732,0.00012815,2]
[401423934,1768202959911,-182.25904905,0.00012815,2]
[401423935,1768202967698,1046.86,0.00012715,2]
[401423936,1768202967730,10000.01,0.00012715,2]
[401423937,1768202967760,10000.01,0.00012715,2]
[401423938,1768202967791,10000.01,0.00012715,2]
[401423939,1768202967821,10000.01,0.00012715,2]
[401423940,1768202967863,10000.01,0.00012715,2]
[401423941,1768202967892,10000.01,0.00012715,2]
[401423942,1768202967921,10000.01,0.00012715,2]
[401423943,1768202967950,10000.01,0.00012715,2]
[401423944,1768202968541,-248.98775697,0.00012715,2]
[401423945,1768202970132,-5944.141,0.00012715,2]
[401423946,1768202972641,161.39,0.00010022,2]
[401423947,1768202976064,-161.39,0.00012527,2]
[401423948,1768202976094,-208.75968596,0.00012715,2]
[401423949,1768203005009,-253.0,0.00012513,2]
[401423950,1768203005049,-1210.21,0.00012513,2]
[401423951,1768203005089,-300.0,0.00012714,2]
[401423952,1768203005124,-1200.0,0.00012714,2]
[401423953,1768203005158,-300.0,0.00012714,2]
[401423954,1768203005192,-150.0,0.00012714,2]
[401423964,1768203031316,-2952.94751725,0.00012715,2]
[401423965,1768203031335,-8968.782907,0.00012715,2]
[401423966,1768203031346,-684.90508682,0.00012715,2]
[401423967,1768203031443,-565.39403671,0.00012715,2]
[401423968,1768203031454,-651.02931078,0.00012715,2]
[401423969,1768203031465,-879.1913564,0.00012715,2]
[401423970,1768203031476,-11484.023682,0.00012715,2]
[401423971,1768203031488,-433.60596329,0.00012715,2]
[401423972,1768203031500,-830.56929068,0.00012715,2]
[401423973,1768203031511,-166538.46272338,0.00012715,2]
[401423974,1768203031523,-1618.14212,0.00012715,2]
[401423975,1768203031540,-497.76627144,0.00012715,2]
[401424135,1768203037447,-435.06180381,0.00012715,2]
[401424136,1768203037459,-112526.94940093,0.00012715,2]
[401424137,1768203037471,-581.69093741,0.00012715,2]
[401424138,1768203037482,-642.37827095,0.00012715,2]
[401424139,1768203037493,-2128.75062163,0.00012715,2]
[401424140,1768203037513,-400.0,0.00012715,2]
[401424141,1768203037524,-596.47040857,0.00012715,2]
[401424142,1768203037566,-7676.03998936,0.00012715,2]
[401424143,1768203037639,-419.12847376,0.00012715,2]
[401424214,1768203039398,-730.0,0.00012715,2]
[401424215,1768203039409,-1799.72295736,0.00012715,2]
[401424216,1768203039420,-357.7855232,0.00012715,2]
[401424217,1768203039489,-214700.34871884,0.00012715,2]
[401424218,1768203039506,-3305.5,0.00012715,2]
[401424219,1768203039518,-732.18335078,0.00012715,2]
[401424220,1768203039529,-1847.29706136,0.00012715,2]
[401424221,1768203039546,-49957.21851857,0.00012715,2]
[401424222,1768203039557,-825.84911174,0.00012715,2]
[401424223,1768203039568,-1217.21481759,0.00012715,2]
[401424224,1768203039615,-936.43138001,0.00012715,2]
[401424225,1768203039626,-801.54783843,0.00012715,2]
[401424226,1768203039637,-843.67086652,0.00012715,2]
[401424227,1768203039814,-312985.1112405,0.00012715,2]
[401424228,1768203039823,-1000.0,0.00012815,2]
[401424229,1768203039834,-250.0,0.00012815,2]
[401424230,1768203039845,-195.0,0.00012815,2]
[401424231,1768203039854,-300.0,0.00012815,2]
[401424232,1768203039863,-300.0,0.00012815,2]
[401424233,1768203039873,-8762.7915993,0.00012815,2]
[401424234,1768203039883,-1000.0,0.00012815,2]
[401424235,1768203039895,-842.32144287,0.00012815,2]
[401424236,1768203039904,-972.79917298,0.00012899,2]
[401424237,1768203039913,-1000.0,0.00012914,2]
[401424238,1768203039922,-371.10670881,0.00012927,2]
[401424239,1768203039931,-300.0,0.00012927,2]
[401424240,1768203039942,-300.0,0.00012927,2]
[401424241,1768203039951,-300.0,0.00012927,2]
[401424242,1768203039960,-537.9933169,0.00012951,2]
[401424243,1768203039970,-1500.0,0.00012961,2]
[401424245,1768203039979,-4423.34896406,0.00013,2]
[401424246,1768203039990,-166.66,0.00013056,2]
[401424247,1768203040002,-1262.49,0.00013076,2]
[401424248,1768203040011,-1503.13063652,0.00013079,2]
[401424249,1768203040020,-538.21,0.00013206,2]
[401424250,1768203040030,-529.45382992,0.00013271,2]
[401424251,1768203040043,-9602.32000232,0.00013291,2]
[401424252,1768203040054,-8409.98178801,0.00013291,2]
[401424253,1768203040066,-166.66,0.00013299,2]
[401424254,1768203040080,-162.0,0.000135,2]
[401424255,1768203040090,-166.66,0.00013541,2]
[401424256,1768203040102,-500.0,0.00013698,2]
[401424257,1768203040113,-500.0,0.00013698,2]
[401424258,1768203040124,-500.0,0.00013698,2]
[401424259,1768203040135,-500.0,0.00013698,2]
[401424260,1768203040145,-262.73857183,0.00013698,2]
[401424261,1768203040154,-500.0,0.00013698,2]
[401424262,1768203040164,-519.22178049,0.00013698,2]
[401424263,1768203040173,-500.0,0.00013698,2]
[401424264,1768203040183,-500.0,0.00013698,2]
[401424265,1768203040194,-500.0,0.00013698,2]
[401424266,1768203040203,-500.0,0.00013698,2]
[401424267,1768203040213,-500.0,0.00013698,2]
[401424268,1768203040223,-500.0,0.00013698,2]
[401424269,1768203040576,-500.0,0.00013698,2]
[401424270,1768203040586,-500.0,0.00013698,2]
[401424271,1768203040595,-500.0,0.00013698,2]
[401424272,1768203040605,-500.0,0.00013698,2]
[401424273,1768203040614,-500.0,0.00013698,2]
[401424274,1768203040625,-500.0,0.00013698,2]
[401424275,1768203040634,-500.0,0.00013698,2]
[401424276,1768203040643,-317.23562895,0.00013698,2]
[401424277,1768203040653,-1556.5,0.00013698,2]
[401424278,1768203040662,-500.0,0.00013698,2]
[401424279,1768203040672,-500.0,0.00013698,2]
[401424280,1768203040681,-500.0,0.00013698,2]
[401424281,1768203040690,-500.0,0.00013698,2]
[401424282,1768203040700,-500.0,0.00013698,2]
[401424283,1768203040709,-500.0,0.00013698,2]
[401424284,1768203040718,-500.0,0.00013698,2]
[401424285,1768203040727,-500.0,0.00013698,2]
[401424286,1768203040736,-500.0,0.00013698,2]
[401424287,1768203040745,-500.0,0.00013698,2]
[401424288,1768203040754,-500.0,0.00013698,2]
[401424289,1768203040763,-520.50202631,0.00013698,2]
[401424290,1768203040772,-500.70750239,0.00013698,2]
[401424291,1768203040781,-500.0,0.00013698,2]
[401424292,1768203040789,-500.0,0.00013698,2]
[401424293,1768203040798,-500.0,0.00013698,2]
[401424294,1768203040807,-500.0,0.00013698,2]
[401424295,1768203040817,-500.0,0.00013698,2]
[401424296,1768203040830,-500.0,0.00013698,2]
[401424297,1768203040839,-500.0,0.00013698,2]
[401424298,1768203040848,-500.0,0.00013698,2]
[401424299,1768203040858,-500.0,0.00013698,2]
[401424300,1768203040867,-500.0,0.00013698,2]
[401424301,1768203040876,-500.0,0.00013698,2]
[401424302,1768203040885,-500.0,0.00013698,2]
[401424303,1768203040893,-500.0,0.00013698,2]
[401424304,1768203040903,-500.0,0.00013698,2]
[401424305,1768203040912,-500.0,0.00013698,2]
[401424306,1768203040922,-500.0,0.00013698,2]
[401424307,1768203040931,-500.0,0.00013698,2]
[401424308,1768203040942,-542.67459147,0.00013698,2]
[401424309,1768203040952,-500.0,0.00013698,2]
[401424310,1768203040969,-500.0,0.00013698,2]
[401424311,1768203040979,-500.0,0.00013698,2]
[401424312,1768203040988,-502.89153827,0.00013698,2]
[401424313,1768203040998,-500.0,0.00013698,2]
[401424314,1768203041009,-559.68593167,0.00013698,2]
[401424315,1768203041018,-500.0,0.00013698,2]
[401424316,1768203041027,-500.0,0.00013698,2]
[401424317,1768203041037,-500.0,0.00013698,2]
[401424318,1768203041046,-500.0,0.00013698,2]
[401424319,1768203041055,-500.0,0.00013698,2]
[401424320,1768203041064,-500.0,0.00013698,2]
[401424321,1768203041076,-500.0,0.00013698,2]
[401424322,1768203041086,-500.0,0.00013698,2]
[401424323,1768203041096,-507.98742565,0.00013698,2]
[401424324,1768203041106,-500.0,0.00013698,2]
[401424325,1768203041116,-500.0,0.00013698,2]
[401424326,1768203041125,-500.0,0.00013698,2]
[401424327,1768203041134,-500.0,0.00013698,2]
[401424328,1768203041143,-500.0,0.00013698,2]
[401424329,1768203041153,-200.0,0.00013699,2]
[401424330,1768203041163,-165.33,0.000137,2]
[401424331,1768203041174,-165.33,0.000137,2]
[401424332,1768203041184,-165.33,0.000137,2]
[401424333,1768203041195,-165.33,0.000137,2]
[401424334,1768203041204,-165.33,0.000137,2]
[401424335,1768203041215,-1047.04298225,0.00013805,2]
[401424336,1768203041225,-255.0,0.00013807,2]
[401424337,1768203041237,-793.7004489,0.00013815,2]
[401424338,1768203041246,-18008.13,0.00013815,2]
[401424339,1768203041256,-7101.8,0.00013815,2]
[401424340,1768203041268,-25979.38,0.00013815,2]
[401424341,1768203041278,-13971.08,0.00013815,2]
[401424342,1768203041288,-3689.33,0.00013815,2]
[401424343,1768203041297,-309.95,0.00013815,2]
[401424344,1768203041306,-21318.04,0.00013815,2]
[401424345,1768203041317,-9999.99,0.00013815,2]
[401424346,1768203041327,-9999.99,0.00013815,2]
[401424347,1768203041338,-9999.99,0.00013815,2]
[401424348,1768203041350,-499.99,0.00013815,2]
[401424349,1768203041360,-542.9,0.00013815,2]
[401424350,1768203041375,-9999.99,0.00013815,2]
[401424351,1768203041385,-999.99,0.00013815,2]
[401424352,1768203041395,-57412.65,0.00013815,2]
[401424353,1768203041404,-81528.87,0.00013815,2]
[401424354,1768203041414,-299.99,0.00013815,2]
[401424355,1768203041424,-9999.99,0.00013815,2]
[401424356,1768203041433,-150.99,0.00013815,2]
[401424357,1768203041443,-150.99,0.00013815,2]
[401424358,1768203041453,-549.12201918,0.00013821,2]
[401424359,1768203041462,-209.20039444,0.00013823,2]
[401424360,1768203041473,-9602.32000232,0.00013867,2]
[401424361,1768203041483,-8409.98178801,0.00013867,2]
[401424362,1768203041492,-420.0,0.00013947,2]
[401424363,1768203041502,-420.0,0.00013947,2]
[401424364,1768203041511,-1556.5,0.00013972,2]
[401424365,1768203041521,-500.0,0.00013972,2]
[401424366,1768203041531,-1680.0,0.00013985,2]
[401424367,1768203041540,-300.0,0.00013985,2]
[401424368,1768203041550,-5041.92423814,0.00014,2]
[401424369,1768203041560,-998.13686081,0.00014,2]
[401424370,1768203041570,-253.56,0.00014011,2]
[401424371,1768203041580,-32152.08,0.00014034,2]
[401424372,1768203041590,-195.0,0.00014095,2]
[401424373,1768203041600,-300.0,0.00014096,2]
[401424374,1768203041610,-300.0,0.00014096,2]
[401424375,1768203041619,-250.0,0.00014096,2]
[401424376,1768203041630,-195.0,0.00014096,2]
[401424377,1768203041640,-600.0,0.00014096,2]
[401424378,1768203041650,-600.0,0.00014096,2]
[401424379,1768203041660,-600.0,0.00014096,2]
[401424380,1768203041669,-600.0,0.00014096,2]
[401424381,1768203041679,-555.91190523,0.00014096,2]
[401424382,1768203041689,-300.0,0.00014096,2]
[401424383,1768203041700,-371.04311866,0.00014096,2]
[401424384,1768203041710,-1034.53,0.00014112,2]
[401424385,1768203041719,-162.0,0.000142,2]
[401424386,1768203041729,-709.68,0.00014224,2]
[401424387,1768203041739,-1556.5,0.00014246,2]
[401424388,1768203041748,-500.0,0.00014246,2]
[401424389,1768203041758,-152.0,0.00014365,3]
[401424390,1768203041767,-3725.38333766,0.0001439,2]
[401424391,1768203041777,-9181.64,0.00014442,2]
[401424392,1768203041788,-9602.32000232,0.00014443,2]
[401424393,1768203041801,-8409.98178801,0.00014443,2]
[401424394,1768203041812,-793.70044884,0.00014496,2]
[401424395,1768203041822,-1556.5,0.0001452,2]
[401424396,1768203041832,-500.0,0.0001452,2]
[401424397,1768203041844,-1000.0,0.00014544,2]
[401424398,1768203041855,-8762.7915993,0.0001456,2]
[401424399,1768203041865,-1000.0,0.00014639,2]
[401424400,1768203041875,-542.89957297,0.00014794,2]
[401424401,1768203041886,-1556.5,0.00014794,2]
[401424402,1768203041897,-151.0,0.00014968,2]
[401424403,1768203041908,-151.0,0.00014968,2]
[401424404,1768203041918,-151.0,0.00014977,2]
[401424405,1768203041931,-151.0,0.00014977,2]
[401424406,1768203041941,-151.0,0.00014977,2]
[401424407,1768203041950,-151.0,0.00014977,2]
[401424408,1768203041960,-152.0,0.00014988,2]
[401424409,1768203041971,-152.0,0.00014988,2]
[401424410,1768203041980,-433.0,0.00014989,2]
[401424411,1768203041991,-1054.9037746,0.00014999,2]
[401424412,1768203042005,-1963.34171095,0.00015,2]
[401424413,1768203042015,-10140.94626068,0.00015,2]
[401424414,1768203042025,-33676.36113959,0.00015,2]
[401424415,1768203042037,-9602.32000232,0.00015019,2]
[401424416,1768203042046,-8409.98178801,0.00015019,2]
[401424417,1768203042057,-161.39,0.00015033,2]
[401424418,1768203042068,-1556.5,0.00015068,2]
[401424419,1768203042079,-286.13,0.00015071,2]
[401424420,1768203042091,-793.70044884,0.00015177,2]
[401424421,1768203042100,-587.0,0.00015299,2]
[401424422,1768203042110,-587.0,0.00015299,2]
[401424423,1768203042120,-105620.30657778,0.0001532,2]